lending/lending_fUSD_20241229
["ID","MTS","AMOUNT","RATE_DAILY","PERIOD"]
[347018236,1735470640337,-4668.07,0.00012765,2]
[347018238,1735470640346,-556.38,0.00012765,2]
[347018240,1735470640356,-1017.05,0.00012765,2]
[347018242,1735470640365,-534.27,0.00012765,2]
[347018244,1735470640374,-1076.36,0.00012765,2]
[347018246,1735470640383,-542.1,0.00012765,2]
[347018248,1735470640393,-1769.7,0.00012766,2]
[347018250,1735470640402,-500.0,0.00012766,2]
[347018252,1735470640411,-784.14,0.00012766,2]
[347018254,1735470640420,-3406.23,0.00012766,2]
[347018256,1735470640430,-1354.26,0.00012766,2]
[347018258,1735470640439,-4744.66,0.00012766,2]
[347018260,1735470640448,-1989.88,0.00012766,2]
[347018262,1735470640458,-2300.07,0.00012766,2]
[347018264,1735470640467,-4060.62,0.00012766,2]
[347018266,1735470640476,-3374.47,0.00012766,2]
[347018268,1735470640485,-1595.87,0.00012766,2]
[347018270,1735470640495,-1411.88,0.00012766,2]
[347018272,1735470640504,-1774.4,0.00012766,2]
[347018274,1735470640514,-1311.92,0.00012766,2]
[347018276,1735470640523,-1293.08,0.00012766,2]
[347018278,1735470640532,-1499.65,0.00012766,2]
[347018280,1735470640542,-3242.0,0.00012766,2]
[347018283,1735470640551,-2577.71,0.00012766,2]
[347018285,1735470640561,-6864.64,0.00012766,2]
[347018287,1735470640570,-1366.7,0.00012766,2]
[347018289,1735470640579,-500.0,0.00012766,2]
[347018291,1735470640588,-1318.44,0.00012766,2]
[347018293,1735470640598,-4055.84,0.00012766,2]
[347018295,1735470640608,-3057.53,0.00012766,2]
[347018297,1735470640617,-1760.06,0.00012766,2]
[347018298,1735470640627,-974.99,0.00012766,2]
[347018300,1735470640636,-500.0,0.00012766,2]
[347018302,1735470640646,-346.56866075,0.00012766,2]
[347018304,1735470640655,-500.0,0.00012766,2]
[347018307,1735470640664,-500.0,0.00012766,2]
[347018309,1735470640674,-500.0,0.00012766,2]
[347018311,1735470640684,-500.0,0.00012766,2]
[347018313,1735470640694,-242.12180431,0.00012766,2]
[347018315,1735470640703,-500.0,0.00012766,2]
[347018317,1735470640713,-500.0,0.00012766,2]
[347018320,1735470640723,-500.0,0.00012766,2]
[347018321,1735470640732,-500.0,0.00012766,2]
[347018323,1735470640741,-500.0,0.00012766,2]
[347018325,1735470640750,-500.0,0.00012767,2]
[347018327,1735470640760,-500.0,0.00012767,2]
[347018329,1735470640769,-500.0,0.00012767,2]
[347018331,1735470640778,-543.18,0.00012767,2]
[347018333,1735470640788,-500.0,0.00012767,2]
[347018335,1735470640797,-690.57,0.00012767,2]
[347018337,1735470640806,-500.0,0.00012767,2]
[347018339,1735470640815,-500.0,0.00012767,2]
[347018341,1735470640825,-500.0,0.00012767,2]
[347018343,1735470640834,-500.0,0.00012767,2]
[347018345,1735470640843,-501.67742127,0.00012767,2]
[347018347,1735470640852,-209.12255028,0.00012767,2]
[347018349,1735470640862,-500.0,0.00012767,2]
[347018351,1735470640873,-500.0,0.00012767,2]
[347018353,1735470640882,-500.0,0.00012767,2]
[347018355,1735470640892,-542.37,0.00012767,2]
[347018357,1735470640902,-500.0,0.00012767,2]
[347018359,1735470640911,-500.0,0.00012767,2]
[347018361,1735470640922,-500.0,0.00012767,2]
[347018363,1735470640932,-633.32190675,0.00012767,2]
[347018365,1735470640941,-500.0,0.00012767,2]
[347018367,1735470640951,-500.0,0.00012767,2]
[347018369,1735470640960,-500.0,0.00012767,2]
[347018372,1735470640970,-500.0,0.00012767,2]
[347018373,1735470640980,-500.0,0.00012767,2]
[347018375,1735470640994,-500.0,0.00012767,2]
[347018377,1735470641004,-500.0,0.00012767,2]
[347018380,1735470641014,-500.0,0.00012767,2]
[347018382,1735470641023,-500.0,0.00012767,2]
[347018384,1735470641035,-531.57,0.00012767,2]
[347018386,1735470641044,-357.69238247,0.00012767,2]
[347018388,1735470641055,-795.67,0.00012767,2]
[347018389,1735470641074,-500.0,0.00012767,2]
[347018392,1735470641084,-1103.88,0.00012767,2]
[347018394,1735470641093,-500.0,0.00012767,2]
[347018396,1735470641102,-500.0,0.00012767,2]
[347018398,1735470641113,-500.0,0.00012767,2]
[347018399,1735470641122,-500.0,0.00012767,2]
[347018402,1735470641132,-500.0,0.00012767,2]
[347018404,1735470641142,-500.0,0.00012767,2]
[347018406,1735470641152,-500.0,0.00012767,2]
[347018408,1735470641161,-611.59,0.00012767,2]
[347018410,1735470641170,-554.42,0.00012767,2]
[347018412,1735470641180,-500.0,0.00012767,2]
[347018414,1735470641189,-502.96405233,0.00012767,2]
[347018416,1735470641198,-151.7194621,0.00012767,2]
[347018418,1735470641207,-500.0,0.00012767,2]
[347018419,1735470641218,-500.0,0.00012767,2]
[347018422,1735470641229,-500.0,0.00012767,2]
[347018423,1735470641239,-1165.0,0.00012767,2]
[347018425,1735470641248,-504.38000802,0.00012767,2]
[347018427,1735470641258,-500.0,0.00012767,2]
[347018429,1735470641267,-500.0,0.00012767,2]
[347018431,1735470641276,-500.0,0.00012767,2]
[347018433,1735470641285,-500.0,0.00012767,2]
[347018435,1735470641297,-500.0,0.00012767,2]
[347018437,1735470641306,-500.0,0.00012767,2]
[347018439,1735470641315,-942.58,0.00012767,2]
[347018441,1735470641324,-500.0,0.00012767,2]
[347018443,1735470641333,-513.36025115,0.00012767,2]
[347018445,1735470641343,-500.0,0.00012767,2]
[347018447,1735470641352,-500.0,0.00012767,2]
[347018449,1735470641363,-500.0,0.00012767,2]
[347018451,1735470641371,-500.0,0.00012767,2]
[347018453,1735470641381,-500.0,0.00012767,2]
[347018455,1735470641391,-500.0,0.00012767,2]
[347018457,1735470641400,-500.0,0.00012767,2]
[347018479,1735470641597,-1019.74,0.00012767,2]
[347018481,1735470641608,-462.27561606,0.00012767,2]
[347018483,1735470641617,-500.0,0.00012767,2]
[347018485,1735470641626,-287.61183135,0.00012767,2]
[347018487,1735470641636,-500.0,0.00012767,2]
[347018489,1735470641645,-500.0,0.00012767,2]
[347018491,1735470641654,-500.0,0.00012767,2]
[347018493,1735470641663,-642.1,0.00012767,2]
[347018495,1735470641673,-500.0,0.00012767,2]
[347018496,1735470641683,-500.0,0.00012767,2]
[347018497,1735470641692,-500.0,0.00012767,2]
[347018498,1735470641704,-500.0,0.00012767,2]
[347018499,1735470641713,-500.0,0.00012767,2]
[347018500,1735470641722,-500.0,0.00012767,2]
[347018501,1735470641732,-520.77245394,0.00012767,2]
[347018502,1735470641740,-500.0,0.00012767,2]
[347018504,1735470641750,-500.0,0.00012767,2]
[347018506,1735470641759,-500.0,0.00012767,2]
[347018508,1735470641769,-500.0,0.00012767,2]
[347018510,1735470641778,-500.0,0.00012767,2]
[347018512,1735470641787,-500.0,0.00012767,2]
[347018514,1735470641796,-500.0,0.00012767,2]
[347018516,1735470641805,-500.0,0.00012767,2]
[347018518,1735470641813,-500.0,0.00012767,2]
[347018520,1735470641822,-500.0,0.00012767,2]
[347018522,1735470641832,-500.0,0.00012767,2]
[347018524,1735470641841,-500.0,0.00012767,2]
[347018526,1735470641850,-840.11,0.00012767,2]
[347018528,1735470641859,-500.0,0.00012767,2]
[347018530,1735470641868,-500.0,0.00012767,2]
[347018531,1735470641877,-508.12201649,0.00012767,2]
[347018533,1735470641887,-500.0,0.00012767,2]
[347018535,1735470641896,-500.0,0.00012767,2]
[347018538,1735470641905,-500.0,0.00012767,2]
[347018540,1735470641914,-586.16,0.00012767,2]
[347018541,1735470641923,-500.0,0.00012767,2]
[347018543,1735470641932,-500.0,0.00012767,2]
[347018546,1735470641941,-500.0,0.00012767,2]
[347018548,1735470641951,-500.0,0.00012767,2]
[347018550,1735470641960,-500.0,0.00012767,2]
[347018551,1735470641969,-500.0,0.00012767,2]
[347018553,1735470641978,-500.0,0.00012767,2]
[347018555,1735470641990,-752.67,0.00012767,2]
[347018557,1735470641999,-500.0,0.00012767,2]
[347018559,1735470642009,-500.0,0.00012767,2]
[347018561,1735470642018,-500.0,0.00012767,2]
[347018563,1735470642027,-500.0,0.00012767,2]
[347018565,1735470642037,-939.61,0.00012767,2]
[347018567,1735470642046,-500.0,0.00012767,2]
[347018569,1735470642055,-1260.48,0.00012767,2]
[347018571,1735470642065,-500.0,0.00012767,2]
[347018573,1735470642074,-500.0,0.00012767,2]
[347018575,1735470642082,-500.0,0.00012767,2]
[347018577,1735470642092,-500.0,0.00012767,2]
[347018579,1735470642101,-500.0,0.00012767,2]
[347018581,1735470642110,-500.0,0.00012767,2]
[347018583,1735470642120,-500.0,0.00012767,2]
[347018585,1735470642129,-500.0,0.00012767,2]
[347018587,1735470642138,-500.0,0.00012767,2]
[347018589,1735470642147,-500.0,0.00012767,2]
[347018591,1735470642157,-205.35036216,0.00012767,2]
[347018593,1735470642166,-500.0,0.00012767,2]
[347018595,1735470642175,-500.0,0.00012767,2]
[347018597,1735470642184,-500.0,0.00012767,2]
[347018599,1735470642193,-1344.36,0.00012767,2]
[347018601,1735470642202,-500.0,0.00012767,2]
[347018603,1735470642211,-500.0,0.00012767,2]
[347018605,1735470642220,-500.0,0.00012767,2]
[347018607,1735470642229,-500.0,0.00012767,2]
[347018609,1735470642239,-500.0,0.00012767,2]
[347018611,1735470642247,-500.0,0.00012767,2]
[347018613,1735470642257,-500.0,0.00012767,2]
[347018615,1735470642265,-500.0,0.00012767,2]
[347018617,1735470642275,-500.0,0.00012767,2]
[347018619,1735470642284,-500.0,0.00012767,2]
[347018621,1735470642293,-1266.9,0.00012767,2]
[347018623,1735470642303,-500.0,0.00012767,2]
[347018625,1735470642312,-500.0,0.00012767,2]
[347018627,1735470642321,-500.0,0.00012767,2]
[347018629,1735470642330,-500.0,0.00012767,2]
[347018631,1735470642339,-500.0,0.00012767,2]
[347018633,1735470642348,-500.0,0.00012767,2]
[347018635,1735470642357,-500.0,0.00012767,2]
[347018636,1735470642366,-500.0,0.00012767,2]
[347018638,1735470642376,-500.0,0.00012767,2]
[347018640,1735470642385,-500.0,0.00012767,2]
[347018643,1735470642394,-500.0,0.00012767,2]
[347018644,1735470642403,-545.04,0.00012767,2]
[347018646,1735470642413,-500.0,0.00012767,2]
[347018648,1735470642422,-506.8720038,0.00012767,2]
[347018651,1735470642431,-500.0,0.00012767,2]
[347018653,1735470642441,-500.0,0.00012767,2]
[347018654,1735470642450,-500.0,0.00012767,2]
[347018656,1735470642459,-500.0,0.00012767,2]
[347018658,1735470642469,-500.0,0.00012767,2]
[347018660,1735470642478,-500.0,0.00012767,2]
[347018662,1735470642487,-551.82,0.00012767,2]
[347018664,1735470642496,-500.0,0.00012767,2]
[347018666,1735470642506,-764.19,0.00012767,2]
[347018668,1735470642515,-500.0,0.00012767,2]
[347018670,1735470642524,-500.0,0.00012767,2]
[347018672,1735470642533,-500.0,0.00012767,2]
[347018674,1735470642542,-500.0,0.00012767,2]
[347018676,1735470642553,-500.0,0.00012767,2]
[347018679,1735470642562,-500.0,0.00012767,2]
[347018680,1735470642572,-500.0,0.00012767,2]
[347018683,1735470642581,-500.0,0.00012767,2]
[347018685,1735470642591,-507.02647429,0.00012767,2]
[347018686,1735470642600,-500.0,0.00012767,2]
[347018688,1735470642610,-502.5009959,0.00012767,2]
[347018691,1735470642619,-598.18,0.00012767,2]
[347018692,1735470642628,-500.0,0.00012767,2]
[347018694,1735470642638,-500.0,0.00012767,2]
[347018696,1735470642647,-500.0,0.00012767,2]
[347018698,1735470642656,-563.25306017,0.00012767,2]
[347018700,1735470642665,-603.16,0.00012767,2]
[347018702,1735470642674,-564.85,0.00012767,2]
[347018704,1735470642684,-556.26,0.00012767,2]
[347018706,1735470642693,-500.0,0.00012767,2]
[347018708,1735470642702,-500.0,0.00012767,2]
[347018710,1735470642711,-508.06740123,0.00012767,2]
[347018712,1735470642721,-500.0,0.00012767,2]
[347018714,1735470642730,-500.0,0.00012767,2]
[347018716,1735470642740,-500.0,0.00012767,2]
[347018718,1735470642749,-1364.59,0.00012767,2]
[347018720,1735470642758,-1426.95,0.00012767,2]
[347018722,1735470642767,-500.0,0.00012767,2]
[347018724,1735470642776,-500.0,0.00012767,2]
[347018726,1735470642785,-500.0,0.00012767,2]
[347018728,1735470642794,-500.0,0.00012767,2]
[347018730,1735470642803,-500.0,0.00012767,2]
[347018732,1735470642812,-500.0,0.00012767,2]
[347018734,1735470642822,-505.09604517,0.00012767,2]
[347018736,1735470642831,-767.76,0.00012767,2]
[347018738,1735470642840,-500.0,0.00012767,2]
[347018741,1735470642849,-500.0,0.00012767,2]
[347018743,1735470642858,-500.0,0.00012767,2]
[347018745,1735470642868,-500.0,0.00012767,2]
[347018747,1735470642877,-571.14975515,0.00012767,2]
[347018750,1735470642886,-500.0,0.00012767,2]
[347018753,1735470642896,-500.0,0.00012767,2]
[347018756,1735470642905,-500.0,0.00012767,2]
[347018759,1735470642914,-515.6062027,0.00012767,2]
[347018761,1735470642924,-500.0,0.00012767,2]
[347018763,1735470642933,-500.0,0.00012767,2]
[347018766,1735470642943,-827.87,0.00012767,2]
[347018769,1735470642951,-500.0,0.00012767,2]
[347018771,1735470642961,-500.0,0.00012767,2]
[347018773,1735470642970,-500.0,0.00012767,2]
[347018775,1735470642980,-500.0,0.00012767,2]
[347018777,1735470642993,-500.0,0.00012767,2]
[347018779,1735470643002,-507.48766273,0.00012767,2]
[347018781,1735470643011,-500.0,0.00012767,2]
[347018783,1735470643021,-500.0,0.00012767,2]
[347018785,1735470643031,-500.0,0.00012767,2]
[347018787,1735470643040,-500.0,0.00012767,2]
[347018789,1735470643050,-500.0,0.00012767,2]
[347018791,1735470643060,-500.0,0.00012767,2]
[347018793,1735470643069,-1127.73,0.00012767,2]
[347018795,1735470643079,-500.0,0.00012767,2]
[347018797,1735470643089,-578.13,0.00012767,2]
[347018799,1735470643098,-500.0,0.00012767,2]
[347018802,1735470643107,-500.0,0.00012767,2]
[347018803,1735470643117,-500.0,0.00012767,2]
[347018806,1735470643127,-500.0,0.00012767,2]
[347018807,1735470643136,-500.0,0.00012767,2]
[347018810,1735470643146,-287.37833137,0.00012767,2]
[347018812,1735470643155,-500.0,0.00012767,2]
[347018814,1735470643164,-500.0,0.00012767,2]
[347018816,1735470643173,-557.79585254,0.00012767,2]
[347018818,1735470643182,-500.0,0.00012767,2]
[347018820,1735470643192,-1376.86,0.00012767,2]
[347018821,1735470643201,-500.0,0.00012767,2]
[347018823,1735470643210,-500.0,0.00012767,2]
[347018825,1735470643219,-500.0,0.00012767,2]
[347018826,1735470643228,-508.16064713,0.00012767,2]
[347018827,1735470643237,-729.71,0.00012767,2]
[347018828,1735470643246,-500.0,0.00012767,2]
[347018829,1735470643255,-500.0,0.00012767,2]
[347018830,1735470643264,-501.41757041,0.00012767,2]
[347018831,1735470643273,-500.0,0.00012767,2]
[347018833,1735470643283,-500.0,0.00012767,2]
[347018834,1735470643292,-500.0,0.00012767,2]
[347018836,1735470643302,-500.0,0.00012767,2]
[347018838,1735470643311,-500.0,0.00012767,2]
[347018841,1735470643321,-500.0,0.00012767,2]
[347018842,1735470643329,-960.13,0.00012767,2]
[347018844,1735470643339,-505.18290836,0.00012767,2]
[347018846,1735470643348,-500.0,0.00012767,2]
[347018848,1735470643357,-500.0,0.00012767,2]
[347018851,1735470643367,-726.65,0.00012767,2]
[347018852,1735470643377,-500.0,0.00012767,2]
[347018855,1735470643386,-500.0,0.00012767,2]
[347018856,1735470643396,-500.0,0.00012767,2]
[347018858,1735470643405,-500.0,0.00012767,2]
[347018860,1735470643415,-500.0,0.00012767,2]
[347018862,1735470643424,-500.0,0.00012767,2]
[347018864,1735470643434,-500.0,0.00012767,2]
[347018867,1735470643443,-500.0,0.00012767,2]
[347018869,1735470643453,-707.03,0.00012767,2]
[347018871,1735470643462,-500.0,0.00012767,2]
[347018873,1735470643471,-614.62618444,0.00012767,2]
[347018875,1735470643481,-500.0,0.00012767,2]
[347018876,1735470643490,-500.0,0.00012767,2]
[347018879,1735470643500,-500.0,0.00012767,2]
[347018881,1735470643509,-500.0,0.00012767,2]
[347018883,1735470643518,-500.0,0.00012767,2]
[347018885,1735470643528,-500.0,0.00012767,2]
[347018887,1735470643537,-500.0,0.00012767,2]
[347018889,1735470643547,-500.0,0.00012767,2]
[347018891,1735470643556,-500.0,0.00012767,2]
[347018893,1735470643565,-501.65980031,0.00012767,2]
[347018895,1735470643574,-500.0,0.00012767,2]
[347018897,1735470643583,-500.0,0.00012767,2]
[347018898,1735470643592,-500.0,0.00012767,2]
[347018901,1735470643604,-1373.91,0.00012767,2]
[347018903,1735470643614,-501.85648211,0.00012767,2]
[347018905,1735470643623,-500.0,0.00012767,2]
[347018906,1735470643632,-346.74171041,0.00012767,2]
[347018908,1735470643641,-500.9251545,0.00012767,2]
[347018910,1735470643650,-500.0,0.00012767,2]
[347018913,1735470643660,-500.0,0.00012767,2]
[347018914,1735470643669,-500.0,0.00012767,2]
[347018916,1735470643678,-500.0,0.00012767,2]
[347018918,1735470643687,-500.0,0.00012767,2]
[347018920,1735470643696,-500.0,0.00012767,2]
[347018922,1735470643706,-605.23850026,0.00012767,2]
[347018924,1735470643715,-500.0,0.00012767,2]
[347018926,1735470643724,-1013.19,0.00012767,2]
[347018928,1735470643733,-500.0,0.00012767,2]
[347018930,1735470643743,-500.0,0.00012767,2]
[347018932,1735470643752,-500.0,0.00012767,2]
[347018934,1735470643761,-749.91,0.00012767,2]
[347018936,1735470643770,-481.2016855,0.00012767,2]
[347018938,1735470643779,-500.0,0.00012767,2]
[347018940,1735470643788,-500.0,0.00012767,2]
[347018942,1735470643798,-500.0,0.00012767,2]
[347018944,1735470643807,-500.0,0.00012767,2]
[347018946,1735470643817,-500.0,0.00012767,2]
[347018948,1735470643826,-500.0,0.00012767,2]
[347018950,1735470643835,-501.22907656,0.00012767,2]
[347018952,1735470643844,-500.0,0.00012767,2]
[347018954,1735470643853,-500.0,0.00012767,2]
[347018956,1735470643862,-500.0,0.00012767,2]
[347018958,1735470643871,-500.0,0.00012767,2]
[347018960,1735470643880,-500.0,0.00012767,2]
[347018962,1735470643889,-706.35,0.00012767,2]
[347018964,1735470643898,-500.0,0.00012767,2]
[347018966,1735470643907,-508.79906001,0.00012767,2]
[347018968,1735470643916,-491.19572585,0.00012767,2]
[347019006,1735470644255,-8.80427415,0.00012767,2]
[347019008,1735470644264,-491.19572585,0.00012767,2]
[347019010,1735470644275,-8.80427415,0.00012767,2]
[347019012,1735470644284,-500.0,0.00012767,2]
[347019032,1735470644293,-83.72572585,0.00012767,2]
[347019035,1735470644473,-416.27427415,0.00012767,2]
[347019037,1735470644482,-500.0,0.00012767,2]
[347019039,1735470644491,-501.16119606,0.00012767,2]
[347019041,1735470644501,-502.73430013,0.00012767,2]
[347019043,1735470644510,-224.43022966,0.00012767,2]
[347019045,1735470644521,-275.56977034,0.00012767,2]
[347019047,1735470644530,-235.52022963,0.00012767,2]
[347019050,1735470644545,-264.47977037,0.00012767,2]
[347019052,1735470644555,-500.0,0.00012767,2]
[347019054,1735470644566,-500.0,0.00012767,2]
[347019056,1735470644575,-359.45314799,0.00012767,2]
[347019058,1735470644587,-140.54685201,0.00012767,2]
[347019060,1735470644596,-500.0,0.00012767,2]
[347019062,1735470644605,-500.0,0.00012767,2]
[347019064,1735470644614,-11.32314799,0.00012767,2]
[347019065,1735470644626,-292.01210719,0.00012767,2]
[347019066,1735470644636,-205.49990381,0.00012767,2]
[347019067,1735470644647,-294.50009619,0.00012767,2]
[347019068,1735470644657,-240.21426261,0.00012767,2]
[347019108,1735470645048,-260.81532606,0.00012767,2]
[347019110,1735470645058,-501.05256816,0.00012767,2]
[347019112,1735470645068,-500.0,0.00012767,2]
[347019114,1735470645078,-117.52068959,0.00012767,2]
[347019117,1735470645096,-1197.41931041,0.00012767,2]
[347019119,1735470645105,-500.0,0.00012767,2]
[347019121,1735470645115,-500.0,0.00012767,2]
[347019123,1735470645124,-500.67845109,0.00012767,2]
[347019125,1735470645133,-500.0,0.00012767,2]
[347019127,1735470645142,-500.0,0.00012767,2]
[347019129,1735470645151,-431.01415427,0.00012767,2]
[347019204,1735470646004,-500.0,0.00012765,2]
[347019206,1735470646013,-68.98584573,0.00012767,2]
[347019208,1735470646022,-557.77715768,0.00012767,2]
[347019210,1735470646033,-374.98711333,0.00012767,2]
[347020306,1735470719421,230000.0,0.00024707,120]
[347020307,1735470757020,110000.0,0.00024707,120]
[347020308,1735470789343,324.78234552,0.00023,120]
[347020311,1735471087118,230000.0,0.0002471,120]
[347020313,1735471222643,350000.0,0.00024713,120]
[347020314,1735471258429,350.75,9.681e-05,2]
[347020315,1735471369312,517.22,0.00016658,30]
[347020317,1735471519618,3358.50238069,9e-05,2]
[347020344,1735471694638,219.64,0.00010137,2]
[347020358,1735471832203,-560.28,0.00011569,2]
[347020359,1735471832213,-150.0,0.00011577,2]
[347020360,1735471832223,-163.06,0.00011635,2]
[347020361,1735471832232,-289.62,0.00011642,2]
[347020362,1735471832241,-250.0,0.00011649,2]
[347020363,1735471832250,-250.0,0.00011665,2]
[347020364,1735471832260,-1000.0,0.00011767,2]
[347020365,1735471832269,-350.75,0.00011944,2]
[347020366,1735471832278,-450.0,0.00012,2]
[347020367,1735471832287,-300.0,0.00012,4]
[347020368,1735471832296,-1248.30488347,0.00012088,2]
[347020369,1735471832314,-1751.69511653,0.00012088,2]
[347020370,1735471832323,-700.0,0.000121,4]
[347020371,1735471832332,-506.97,0.00012146,2]
[347020372,1735471832341,-263.964,0.0001216,2]
[347020373,1735471832350,-1000.0,0.000122,4]
[347020374,1735471832359,-503.86,0.00012277,2]
[347020375,1735471832368,-1400.0,0.000123,4]
[347020376,1735471832377,-1490.02144168,0.000124,4]
[347020377,1735471832388,-209.97855832,0.000124,4]
[347020378,1735471832398,-498.14,0.00012476,2]
[347020379,1735471832407,-300.0,0.000125,4]
[347020380,1735471832417,-151.65388186,0.00012592,2]
[347020381,1735471832426,-1657.07156911,0.000126,2]
[347020382,1735471832456,-585.04,0.000126,2]
[347020383,1735471832486,-342.527592,0.000126,2]
[347020384,1735471832497,-720.52065708,0.000126,2]
[347020385,1735471832508,-1305.49139509,0.000126,2]
[347020386,1735471832523,-1259.99999995,0.000126,2]
[347020387,1735471832538,-26490.26228677,0.000126,2]
[347020388,1735471832549,-300.0,0.000126,4]
[347020389,1735471832558,-1445.96658,0.0001264,2]
[347020391,1735471832568,-150.0,0.00012645,2]
[347020393,1735471832577,-164.34168628,0.00012665,2]
[347020395,1735471832587,-5000.0,0.00012666,2]
[347020397,1735471832596,-500.0,0.00012667,2]
[347020400,1735471832605,-21680.05307693,0.00012687,2]
[347020402,1735471832614,-28418.05002393,0.00012688,2]
[347020403,1735471832623,-151.0,0.00012692,2]
[347020405,1735471832633,-157.96767206,0.00012699,2]
[347020407,1735471832642,-166.61241008,0.00012699,2]
[347020409,1735471832651,-300.0,0.000127,4]
[347020412,1735471832661,-499.69,0.00012732,2]
[347020413,1735471832670,-157.96767201,0.00012733,2]
[347020415,1735471832679,-164.34168627,0.00012743,2]
[347020418,1735471832688,-500.0,0.00012764,2]
[347020420,1735471832697,-941.98,0.00012764,2]
[347020422,1735471832708,-3264.3,0.00012764,2]
[347020424,1735471832717,-1243.75,0.00012764,2]
[347020426,1735471832726,-4567.8,0.00012764,2]
[347020428,1735471832735,-2225.07,0.00012764,2]
[347020429,1735471832744,-3912.27,0.00012764,2]
[347020432,1735471832754,-3233.87,0.00012764,2]
[347020433,1735471832763,-1451.31,0.00012764,2]
[347020435,1735471832772,-500.0,0.00012764,2]
[347020437,1735471832781,-4465.23,0.00012764,2]
[347020439,1735471832791,-747.11,0.00012764,2]
[347020442,1735471832800,-1732.01,0.00012764,2]
[347020443,1735471832809,-8951.76,0.00012764,2]
[347020445,1735471832819,-1299.31,0.00012764,2]
[347020447,1735471832828,-3055.8,0.00012764,2]
[347020449,1735471832837,-1733.99,0.00012764,2]
[347020451,1735471832846,-6003.27,0.00012764,2]
[347020453,1735471832855,-3127.75,0.00012764,2]
[347020455,1735471832865,-1975.78,0.00012764,2]
[347020457,1735471832874,-4846.75,0.00012764,2]
[347020459,1735471832884,-7037.68,0.00012764,2]
[347020461,1735471832893,-1460.85,0.00012764,2]
[347020463,1735471832902,-500.0,0.00012764,2]
[347020465,1735471832912,-562.33,0.00012764,2]
[347020467,1735471832921,-500.0,0.00012764,2]
[347020469,1735471832931,-574.59,0.00012764,2]
[347020471,1735471832940,-1906.97,0.00012764,2]
[347020472,1735471832949,-550.75,0.00012764,2]
[347020473,1735471832958,-1344.42,0.00012764,2]
[347020474,1735471832968,-706.17,0.00012764,2]
[347020475,1735471832976,-500.0,0.00012764,2]
[347020477,1735471832986,-500.0,0.00012764,2]
[347020479,1735471832995,-712.62,0.00012764,2]
[347020481,1735471833004,-1695.96,0.00012764,2]
[347020483,1735471833014,-500.0,0.00012764,2]
[347020484,1735471833024,-508.47,0.00012765,2]
[347020487,1735471833034,-1529.37,0.00012765,2]
[347020489,1735471833044,-280.73829788,0.00012765,2]
[347020490,1735471833054,-500.0,0.00012765,2]
[347020492,1735471833063,-1257.26,0.00012765,2]
[347020494,1735471833072,-1031.52,0.00012765,2]
[347020496,1735471833082,-500.0,0.00012765,2]
[347020498,1735471833091,-500.0,0.00012765,2]
[347020500,1735471833100,-589.61,0.00012765,2]
[347020502,1735471833110,-1009.08,0.00012765,2]